bitfinex-derivatives/quotes_SOLF0:USTF0_20250518
["timestamp","ask_amount","ask_price","bid_price","bid_amount"]
[1747590646735,5.7697,173.26,173.22,5.7708]
[1747590646925,5.7697,173.26,173.16,85.88]
[1747590647132,498.56,173.37,173.16,171.6]
[1747590647431,171.6,173.36,173.23,5.7705]
[1747590647932,171.6,173.36,173.16,171.6]
[1747590648233,5.7695,173.27,173.16,171.6]
[1747590648934,5.7698,173.26,173.16,171.6]
[1747590649135,171.6,173.36,173.16,171.6]
[1747590650237,5.7695,173.27,173.22,5.7707]
[1747590650435,5.7695,173.27,173.16,171.6]
[1747590650735,5.7697,173.26,173.21,5.771]
[1747590650935,85.7,173.3,173.17,85.68]
[1747590651229,5.77,173.25,173.13,89.6943]
[1747590651732,171.6,173.3,173.13,89.6943]
[1747590652135,171.6,173.3,173.16,13.51171597]
[1747590652335,5.7687,173.29,173.25,5.7697]
[1747590652634,85.68,173.31,173.19,85.9]
[1747590652832,5.7688,173.29,173.24,5.7701]
[1747590653031,85.68,173.31,173.2,1.9972]
[1747590653433,5.7684,173.3,173.2,1.9972]
[1747590653634,85.68,173.31,173.2,1.9972]
[1747590653934,85.68,173.31,173.21,3.8684]
[1747590654232,91.4481,173.31,173.21,3.8684]
[1747590654434,85.68,173.31,173.21,3.8684]
[1747590655341,91.448,173.31,173.21,3.8684]
[1747590655541,85.64,173.31,173.21,3.8684]
[1747590655840,5.7671,173.34,173.29,5.7687]
[1747590656031,85.64,173.33,173.21,3.8684]
[1747590656226,85.9,173.34,173.21,3.8684]
[1747590656931,91.667,173.34,173.21,3.8684]
[1747590657437,85.9,173.34,173.15,13.51171597]
[1747590657639,8.45148259,173.32,173.16,10.41668259]
[1747590657843,5.77,173.25,173.2,5.7713]
[1747590658140,171.52,173.28,173.16,10.41668259]
[1747590658441,5.7697,173.26,173.21,5.771]
[1747590658742,171.52,173.28,173.16,1.9652]
[1747590658941,5.7703,173.25,173.21,5.7713]
[1747590659141,5.7703,173.25,173.16,1.9652]
[1747590659442,5.7696,173.27,173.21,5.7713]
[1747590659744,171.52,173.28,173.16,1.9652]
[1747590659937,171.52,173.28,173.25,5.7697]
[1747590660443,8.45148259,173.32,173.25,5.7697]
[1747590660740,85.6,173.31,173.16,1.9652]
[1747590660943,85.6,173.31,173.18,8.45148259]
[1747590661645,85.6,173.31,173.28,5.7687]
[1747590661842,85.6,173.31,173.21,85.62]
[1747590662043,85.6,173.31,173.22,3.7877]
[1747590662243,5.7672,173.34,173.22,3.7877]
[1747590662437,85.58,173.33,173.22,3.7877]
[1747590662637,85.62,173.34,173.23,1.9087]
[1747590663237,85.62,173.34,173.3,5.7681]
[1747590663438,85.62,173.34,173.23,1.9087]
[1747590663937,85.62,173.34,173.3,5.768]
[1747590664139,85.62,173.34,173.23,1.9087]
[1747590665237,85.62,173.34,173.18,94.07148259]
[1747590665541,85.62,173.34,173.18,99.94458259]
[1747590665739,8.45148259,173.33,173.18,91.4931]
[1747590666440,5.7692,173.28,173.18,91.4931]
[1747590667139,85.54,173.3,173.18,91.4931]
[1747590667544,8.45148259,173.27,173.13,85.6]
[1747590667741,5.7703,173.24,173.13,85.6]
[1747590668144,5.7703,173.24,173.13,171.12]
[1747590668338,5.7701,173.25,173.13,171.12]
[1747590668747,85.6,173.27,173.13,171.12]
[1747590668945,13.5307174,173.26,173.12,5.9005]
[1747590669246,13.5307174,173.25,173.05,10.65182098]
[1747590669446,85.52,173.24,173.06,5.7553]
[1747590670245,85.52,173.24,173.14,5.7736]
[1747590670445,85.52,173.24,173.06,5.7553]
[1747590670648,498.72,173.26,173.06,5.7553]
[1747590670951,5.18738937,173.23,173.06,5.7553]
[1747590671138,5.7711,173.22,173.06,5.7553]
[1747590671543,5.18738937,173.23,173.06,5.7553]
[1747590672050,86.46,173.22,173.06,5.7553]
[1747590672246,86.46,173.22,173.08,13.5307174]
[1747590672443,86.46,173.22,173.06,5.7553]
[1747590673352,86.46,173.22,173.15,5.7731]
[1747590673553,86.46,173.22,173.1,85.64]
[1747590673848,5.18738937,173.23,173.1,172.02]
[1747590674054,86.38,173.23,173.1,172.02]
[1747590674753,86.38,173.23,173.1,185.5507174]
[1747590675753,86.38,173.23,173.1,174.22]
[1747590676146,92.1509,173.23,173.16,5.7728]
[1747590676347,86.38,173.23,173.1,174.22]
[1747590676960,5.7713,173.21,173.15,5.7733]
[1747590677152,86.38,173.23,173.1,174.22]
[1747590677352,86.38,173.23,173.1,85.64]
[1747590677556,5.7714,173.21,173.1,85.64]
[1747590677748,86.38,173.23,173.1,85.64]
[1747590677950,5.7724,173.18,173.13,5.774]
[1747590678149,86.38,173.23,173.1,85.64]
[1747590678458,13.5307174,173.14,173.04,3.99022461]
[1747590678759,195.56,173.13,173.04,3.99022461]
[1747590679052,5.7763,173.06,173.04,3.96772461]
[1747590679257,13.5307174,173.11,173.04,3.96772461]
[1747590680461,5.7766,173.06,173.04,3.96772461]
[1747590680760,13.5307174,173.11,173.04,3.96772461]
[1747590681255,13.5307174,173.11,172.93,111.78242798]
[1747590681256,13.5307174,173.07,172.85,14.53655589]
[1747590681454,5.7769,173.05,172.89,100.8]
[1747590681759,203.54,173.06,172.9,1.15673799]
[1747590682150,203.54,173.06,172.9,14.68745539]
[1747590682351,203.54,173.06,172.96,5.7796]
[1747590682555,203.54,173.06,172.9,14.68745539]
[1747590682757,13.5307174,173.11,172.9,14.68745539]
[1747590683055,5.7759,173.08,172.9,14.68745539]
[1747590683253,203.56,173.1,172.9,14.68745539]
[1747590683656,203.56,173.1,172.99,5.7785]
[1747590684159,203.56,173.1,172.93,103.16]
[1747590684360,203.56,173.1,172.9,1.15673799]
[1747590684665,13.5307174,173.07,172.9,1.15673799]
[1747590685153,13.5307174,173.03,172.9,1.15673799]
[1747590685461,5.7798,172.96,172.9,1.15673799]
[1747590685658,204.06,173.02,172.9,1.15673799]
[1747590685861,5.7793,172.97,172.9,1.15673799]
[1747590686162,204.06,173.02,172.9,1.15673799]
[1747590687651,5.7793,172.98,172.92,5.781]
[1747590687850,499.14,173.04,172.9,1.15673799]
[1747590688161,209.7576,173.03,172.9,1.15673799]
[1747590688460,204.02,173.03,172.9,1.15673799]
[1747590688655,204.02,173.03,172.98,5.7787]
[1747590688860,204.02,173.03,172.91,1.9096]
[1747590689159,100.86,173.03,172.92,3.7824]
[1747590689458,102.98,173.07,172.93,102.98]
[1747590689660,102.98,173.07,172.94,100.86]
[1747590691055,5.7771,173.04,172.94,100.86]
[1747590691261,102.98,173.07,172.94,100.86]
[1747590691763,5.7769,173.05,172.99,5.7784]
[1747590692663,5.7769,173.05,173.0,5.7782]
[1747590692958,5.7764,173.06,173.0,5.7782]
[1747590693359,5.7768,173.05,173.0,5.7782]
[1747590693659,5.7768,173.05,172.99,5.7786]
[1747590694059,5.7763,173.07,173.01,5.7779]
[1747590694259,203.26,173.09,172.94,100.86]
[1747590694661,203.26,173.09,172.97,5.779]
[1747590694961,203.26,173.09,172.93,203.02]
[1747590695355,203.26,173.09,172.97,5.779]
[1747590695762,5.7776,173.03,172.98,5.7788]
[1747590696062,203.26,173.09,172.93,203.02]
[1747590696253,5.7773,173.04,172.98,5.7787]
[1747590696453,203.26,173.09,172.93,203.02]
[1747590696653,203.26,173.09,172.93,100.86]
[1747590696861,203.26,173.09,172.97,5.779]
[1747590697053,203.26,173.09,172.93,100.86]
[1747590697361,203.26,173.09,172.95,5.7797]
[1747590697749,13.5307174,173.07,172.93,100.86]
[1747590698453,5.7787,172.99,172.95,5.7799]
[1747590698654,202.02,173.03,172.93,100.86]
[1747590699858,5.778,173.01,172.96,5.7794]
[1747590700160,202.02,173.03,172.93,100.86]
[1747590700364,5.778,173.01,172.96,5.7794]
[1747590700856,202.02,173.03,172.93,100.86]
[1747590701463,207.7975,173.03,172.98,5.7787]
[1747590701764,202.02,173.03,172.93,100.86]
[1747590701954,5.7777,173.02,172.97,5.7791]
[1747590702153,5.7777,173.02,172.93,100.86]
[1747590702464,5.7777,173.02,172.97,5.7792]
[1747590702661,207.7974,173.03,172.93,100.86]
[1747590702962,202.02,173.03,172.93,100.86]
[1747590703662,5.7781,173.01,172.93,100.86]
[1747590704168,5.7784,173.0,172.96,5.7794]
[1747590704355,202.02,173.03,172.93,100.86]
[1747590704555,202.02,173.03,172.96,5.7794]
[1747590704757,202.02,173.03,172.93,100.86]
[1747590705262,202.02,173.03,172.96,5.7795]
[1747590705452,5.778,173.01,172.93,100.86]
[1747590705659,202.02,173.03,172.97,5.779]
[1747590705954,202.02,173.03,172.93,100.86]
[1747590706564,5.7784,173.0,172.93,100.86]
[1747590706860,202.02,173.03,172.93,100.86]
[1747590707061,5.7783,173.01,172.93,100.86]
[1747590707261,202.02,173.03,172.93,100.86]
[1747590707464,202.02,173.03,172.96,5.7794]
[1747590707656,202.02,173.03,172.93,100.86]
[1747590708060,202.02,173.03,172.97,5.7791]
[1747590708357,5.778,173.01,172.97,5.7791]
[1747590708664,100.86,173.03,172.93,100.86]
[1747590709466,106.6375,173.03,172.93,100.86]
[1747590709666,100.86,173.03,172.93,100.86]
[1747590709968,106.6373,173.03,172.93,100.86]
[1747590710668,106.6373,173.03,172.99,5.7786]
[1747590711670,5.7777,173.02,172.98,5.7789]
[1747590712372,100.86,173.03,172.93,100.86]
[1747590712665,5.7779,173.02,172.93,100.86]
[1747590713069,100.86,173.03,172.93,100.86]
[1747590713574,5.7779,173.02,172.98,5.7788]
[1747590714062,100.86,173.03,172.93,100.86]
[1747590714270,106.6375,173.03,172.99,5.7786]
[1747590714468,100.86,173.03,172.93,100.86]
[1747590715677,100.86,173.03,172.94,8.47276442]
[1747590716564,106.6376,173.03,172.94,8.47276442]
[1747590716768,100.86,173.03,172.94,8.47276442]
[1747590717573,106.6374,173.03,172.99,5.7785]
[1747590717871,100.86,173.03,172.94,8.47276442]
[1747590718068,100.86,173.03,173.02,5.7776]
[1747590718274,96.32,173.06,172.97,8.47276442]
[1747590718769,98.22,173.08,172.97,8.47276442]
[1747590718972,98.22,173.08,172.98,1.9682]
[1747590719172,5.7764,173.06,173.01,5.778]
[1747590719370,98.22,173.08,172.98,1.9682]
[1747590719870,98.22,173.08,173.01,5.778]
[1747590720070,98.22,173.08,172.98,1.9682]
[1747590720579,5.7764,173.06,173.01,5.7777]
[1747590721076,5.7767,173.05,173.01,5.7777]
[1747590721573,98.22,173.08,172.98,1.9682]
[1747590721773,98.22,173.08,172.95,8.47276442]
[1747590722073,98.22,173.08,173.0,5.7781]
[1747590722569,98.22,173.08,172.99,5.7785]
[1747590722765,98.22,173.08,172.95,8.47276442]
[1747590722973,98.22,173.08,172.94,1.9191]
[1747590723477,98.22,173.08,172.96,8.47276442]
[1747590723677,98.22,173.08,173.02,5.7776]
[1747590723871,5.7763,173.07,172.96,8.47276442]
[1747590724074,98.22,173.08,172.96,8.47276442]
[1747590724274,5.18738937,173.1,172.96,8.47276442]
[1747590724478,99.96738937,173.1,172.99,8.47276442]
[1747590724675,8.47730363,173.07,172.92,5.31311029]
[1747590724980,5.7786,173.0,172.92,9.17091029]
[1747590725179,5.7786,173.0,172.94,5.7803]
[1747590725479,94.88,173.04,172.92,9.17091029]
[1747590725777,94.88,173.04,172.92,14.95161029]
[1747590725979,5.7794,172.97,172.92,9.17091029]
[1747590726180,5.7794,172.97,172.92,7.23191029]
[1747590726380,5.7794,172.97,172.92,7.6997]
[1747590726680,5.7797,172.96,172.92,7.6997]
[1747590726879,94.88,173.04,172.92,7.6997]
[1747590727180,5.7796,172.97,172.92,7.6997]
[1747590727484,8.48815349,172.96,172.91,5.31311029]
[1747590727680,106.84,172.97,172.91,5.31311029]
[1747590727882,5.781,172.92,172.91,5.31311029]
[1747590728081,107.96,172.94,172.91,5.31311029]
[1747590728269,5.781,172.93,172.91,5.31311029]
[1747590728473,107.96,172.94,172.91,5.31311029]
[1747590728880,107.96,172.94,172.91,1.029e-05]
[1747590729073,113.74,172.94,172.91,1.029e-05]
[1747590729477,107.96,172.94,172.91,1.029e-05]
[1747590729774,107.96,172.94,172.89,5.782]
[1747590729775,107.6,172.94,172.89,5.782]
[1747590729969,107.6,172.94,172.83,1.9327]
[1747590730174,107.6,172.94,172.83,3.8891]
[1747590730380,107.6,172.94,172.84,1.8808]
[1747590731384,107.6,172.94,172.9,5.7816]
[1747590731575,107.6,172.94,172.84,1.8808]
[1747590732581,107.6,172.94,172.82,20.0]
[1747590733178,5.7831,172.86,172.82,20.0]
[1747590733378,107.6,172.94,172.82,20.0]
[1747590733783,213.24,172.93,172.82,20.0]
[1747590733979,13.58182262,172.99,172.82,20.0]
[1747590734179,213.14,172.98,172.82,20.0]
[1747590734380,5.781,172.92,172.86,5.783]
[1747590734679,213.14,172.98,172.82,23.8858]
[1747590735884,213.14,172.98,172.82,20.0]
[1747590736887,5.7827,172.87,172.82,20.0]
[1747590737186,13.58182262,172.91,172.82,20.0]
[1747590737387,212.56,172.9,172.82,20.0]
[1747590737783,13.58182262,172.91,172.82,20.0]
[1747590738081,212.7,172.9,172.82,20.0]
[1747590738283,106.86,172.89,172.82,20.0]
[1747590738586,106.86,172.88,172.82,20.0]
[1747590739192,5.7834,172.85,172.82,20.0]
[1747590739685,106.48,172.87,172.82,25.784]
[1747590739888,5.7824,172.88,172.82,20.0]
[1747590740289,5.7824,172.88,172.83,5.784]
[1747590740691,5.7827,172.87,172.82,20.0]
[1747590740888,106.26,172.9,172.82,20.0]
[1747590741085,5.784,172.83,172.82,20.0]
[1747590741791,5.7837,172.84,172.82,20.0]
[1747590742182,105.68,172.86,172.82,20.0]
[1747590742591,105.56,172.89,172.83,5.784]
[1747590742887,5.784,172.84,172.82,20.0]
[1747590743089,105.56,172.89,172.82,20.0]
[1747590743390,5.7839,172.84,172.82,20.0]
[1747590743688,105.56,172.89,172.82,20.0]
[1747590744591,5.784,172.83,172.82,20.0]
[1747590746191,605.38,172.89,172.82,20.0]
[1747590747589,605.38,172.89,172.82,10.7187]
[1747590747785,5.784,172.83,172.82,0.0001]
[1747590748590,116.664,172.83,172.82,0.0001]
[1747590751313,219.68,172.86,172.82,0.0001]
[1747590752607,219.56,172.85,172.82,0.0001]
[1747590752808,5.784,172.83,172.82,0.0001]
[1747590754711,219.56,172.85,172.65,3.99022461]
[1747590754912,219.56,172.85,172.67,3.9845]
[1747590755212,219.56,172.85,172.73,5.7872]
[1747590755417,219.56,172.85,172.67,3.9845]
[1747590756219,13.59305848,172.84,172.65,3.99022461]
[1747590756515,13.59305848,172.84,172.66,3.9845]
[1747590756915,13.59305848,172.84,172.71,5.7879]
[1747590757116,13.59305848,172.84,172.66,3.9845]
[1747590757417,5.7866,172.76,172.72,5.7877]
[1747590757620,5.7866,172.76,172.66,3.9845]
[1747590757919,220.8261,172.77,172.72,5.7874]
[1747590758119,16.74838937,172.94,172.66,3.9845]
[1747590758323,214.82,172.88,172.66,3.9845]
[1747590758511,215.97687181,172.88,172.75,5.7864]
[1747590758821,215.97687181,172.88,172.66,3.9845]
[1747590760120,5.7844,172.82,172.66,3.9845]
[1747590760321,112.3844,172.82,172.66,3.9845]
[1747590760726,112.3844,172.82,172.78,5.7854]
[1747590761024,106.6,172.82,172.68,107.72]
[1747590761425,5.7847,172.81,172.68,107.72]
[1747590761624,214.32,172.82,172.68,107.72]
[1747590762025,220.1046,172.82,172.68,107.72]
[1747590762326,214.32,172.82,172.77,5.7857]
[1747590762624,5.7848,172.81,172.77,5.7857]
[1747590762818,105.58,172.83,172.69,105.64]
[1747590763324,5.7846,172.82,172.78,5.7854]
[1747590763518,105.58,172.83,172.69,119.23305848]
[1747590763918,107.74,172.84,172.69,130.81025848]
[1747590764121,107.74,172.84,172.69,119.23305848]
[1747590764324,107.74,172.84,172.82,5.7843]
[1747590764624,107.74,172.84,172.73,13.59305848]
[1747590764824,107.74,172.84,172.74,5.6504]
[1747590765530,113.524,172.84,172.74,5.6504]
[1747590766027,113.524,172.84,172.79,5.785]
[1747590766223,107.74,172.84,172.79,5.785]
[1747590766428,5.784,172.83,172.79,5.785]
[1747590766828,113.5239,172.84,172.74,5.6504]
[1747590767323,107.74,172.84,172.74,5.6504]
[1747590767528,1.15687181,172.88,172.74,110.1304]
[1747590767928,1.15687181,172.88,172.75,103.78]
[1747590768530,5.7833,172.85,172.75,103.78]
[1747590768728,708.14,172.89,172.74,110.1304]
[1747590769428,708.14,172.89,172.78,5.7854]
[1747590769630,708.14,172.89,172.74,110.1304]
[1747590769930,207.72,172.88,172.74,110.1304]
[1747590770129,5.7839,172.84,172.79,5.7851]
[1747590770630,102.98,172.87,172.74,110.1304]
[1747590771531,5.7842,172.83,172.78,5.7856]
[1747590771829,102.98,172.87,172.78,5.7856]
[1747590772429,5.7841,172.83,172.78,5.7856]
[1747590772626,102.98,172.87,172.79,5.7853]
[1747590772831,206.54,172.88,172.74,110.1304]
[1747590773032,104.48,172.88,172.82,5.7841]
[1747590774038,5.7832,172.86,172.81,5.7846]
[1747590774526,5.7832,172.86,172.74,110.1304]
[1747590774730,104.48,172.88,172.74,110.1304]
[1747590775230,104.48,172.88,172.83,5.784]
[1747590775434,110.2624,172.88,172.83,5.784]
[1747590775629,104.48,172.88,172.79,8.48751004]
[1747590775926,106.52738937,172.94,172.82,8.48751004]
[1747590776126,106.52738937,172.94,172.86,5.7829]
[1747590776431,106.52738937,172.94,172.83,5.9888]
[1747590776633,112.30798937,172.94,172.83,5.9888]
[1747590776828,106.52738937,172.94,172.87,5.7824]
[1747590777133,5.7809,172.93,172.87,5.7824]
[1747590777527,106.52738937,172.94,172.83,5.9888]
[1747590777728,5.7817,172.9,172.83,5.9888]
[1747590778032,100.64,172.89,172.7,13.58925334]
[1747590778334,5.7838,172.84,172.76,3.9578]
[1747590778534,5.7838,172.84,172.79,5.7853]
[1747590779636,5.7834,172.85,172.79,5.7853]
[1747590780131,5.7834,172.85,172.76,105.2778]
[1747590780328,100.0,172.91,172.76,105.2778]
[1747590780736,5.7827,172.87,172.82,5.7841]
[1747590781230,100.0,172.91,172.76,105.2778]
[1747590781838,5.782,172.89,172.83,5.7837]
[1747590782037,100.0,172.91,172.76,105.2778]
[1747590782431,5.7824,172.88,172.82,5.784]
[1747590782633,100.0,172.91,172.82,5.784]
[1747590783540,5.7827,172.87,172.82,5.784]
[1747590783730,101.32,172.86,172.74,7.17536188]
[1747590784035,99.12,172.85,172.74,7.17536188]
[1747590784233,99.12,172.85,172.75,5.7864]
[1747590784538,99.12,172.85,172.74,7.17536188]
[1747590784841,98.86,172.87,172.75,2.0126]
[1747590785338,5.7838,172.84,172.75,2.0126]
[1747590785539,98.86,172.87,172.75,2.0126]
[1747590785742,200.06,172.9,172.75,2.0126]
[1747590786340,5.7839,172.84,172.78,5.7854]
[1747590786640,5.7839,172.84,172.75,2.0126]
[1747590786937,200.06,172.9,172.75,2.0126]
[1747590787138,5.7836,172.85,172.75,2.0126]
[1747590787636,5.7837,172.84,172.75,2.0126]
[1747590788136,200.06,172.9,172.75,2.0126]
[1747590788341,200.06,172.9,172.8,5.7849]
[1747590788638,200.06,172.9,172.75,2.0126]
[1747590788827,5.7836,172.85,172.75,2.0126]
[1747590789030,200.06,172.9,172.75,2.0126]
[1747590789235,5.7824,172.88,172.82,5.7841]
[1747590789436,5.7824,172.88,172.75,2.0126]
[1747590789738,5.18738937,172.94,172.75,2.0126]
[1747590789939,99.02,172.9,172.75,2.0126]
[1747590790340,5.7839,172.84,172.78,5.7854]
[1747590790544,99.02,172.9,172.75,2.0126]
[1747590791438,99.02,172.9,172.84,5.7836]
[1747590791742,98.2,172.91,172.79,98.2]
[1747590791941,103.9813,172.91,172.8,3.7727]
[1747590792134,98.2,172.91,172.8,102.9127]
[1747590792439,103.9813,172.91,172.8,102.9127]
[1747590792639,98.2,172.91,172.8,102.9127]
[1747590792840,5.18738937,172.94,172.8,102.9127]
[1747590793040,202.30738937,172.94,172.8,102.9127]
[1747590793245,197.12,172.94,172.84,5.7836]
[1747590793441,197.12,172.94,172.8,102.9127]
[1747590793636,98.2,172.94,172.8,102.9127]
[1747590793842,98.2,172.94,172.87,5.7826]
[1747590794345,13.59227702,172.91,172.77,5.38783162]
[1747590794545,115.53,172.94,172.77,5.38783162]
[1747590794744,13.59230877,172.9,172.77,5.38783162]
[1747590794949,5.7849,172.81,172.77,5.38783162]
[1747590795246,112.6,172.86,172.77,5.38783162]
[1747590795938,5.7848,172.81,172.77,5.38783162]
[1747590796142,112.6,172.86,172.77,5.38783162]
[1747590796650,112.6,172.86,172.74,5.787]
[1747590797346,112.6,172.86,172.71,3.8495]
[1747590797744,5.7857,172.79,172.71,3.8495]
[1747590797947,114.42,172.82,172.72,5.7876]
[1747590798648,5.7853,172.79,172.72,5.7876]
[1747590798843,114.42,172.82,172.71,3.8495]
[1747590799149,5.7851,172.8,172.71,3.8495]
[1747590799742,5.7847,172.81,172.71,3.8495]
[1747590799948,114.42,172.82,172.74,5.787]
[1747590801147,5.7853,172.8,172.74,5.787]
[1747590801848,5.7853,172.8,172.75,5.7866]
[1747590802646,5.7851,172.8,172.74,5.7868]
[1747590802950,114.42,172.82,172.74,5.7868]
[1747590803650,5.7851,172.8,172.74,5.7868]
[1747590803952,114.42,172.82,172.68,5.38783162]
[1747590804144,5.7869,172.75,172.68,5.38783162]
[1747590804344,8.49707896,172.81,172.68,5.38783162]
[1747590804541,8.49707896,172.81,172.7,5.7882]
[1747590804748,114.42,172.82,172.68,5.38783162]
[1747590805557,5.7863,172.77,172.68,5.38783162]
[1747590806045,5.7863,172.77,172.68,13.88491058]
[1747590806258,5.7857,172.78,172.68,13.88491058]
[1747590806464,112.8,172.83,172.71,8.49707896]
[1747590806662,5.7853,172.8,172.74,5.7869]
[1747590807165,5.7854,172.79,172.74,5.7869]
[1747590807560,112.8,172.83,172.75,5.7867]
[1747590807965,112.8,172.83,172.71,3.8024]
[1747590808161,112.8,172.83,172.74,5.7867]
[1747590809268,5.7857,172.78,172.73,5.7873]
[1747590809565,5.7857,172.78,172.71,3.8024]
[1747590809867,112.8,172.83,172.71,3.8024]
[1747590810466,5.7856,172.79,172.74,5.7869]
[1747590810658,112.8,172.83,172.74,5.7869]
[1747590810857,112.8,172.83,172.71,3.8024]
[1747590811166,5.7853,172.8,172.75,5.7863]
[1747590811666,112.8,172.83,172.75,5.7863]
[1747590812262,5.7853,172.8,172.75,5.7863]
[1747590812564,112.8,172.83,172.75,5.7863]
[1747590812965,112.8,172.83,172.74,5.7869]
[1747590813470,5.7854,172.79,172.74,5.7869]
[1747590813665,112.8,172.83,172.73,8.49707896]
[1747590813870,13.68446833,172.89,172.73,8.49707896]
[1747590814168,115.34738937,172.89,172.76,8.49707896]
[1747590814362,115.34738937,172.89,172.77,114.6557]
[1747590814562,5.7827,172.87,172.77,114.6557]
[1747590814769,5.7827,172.87,172.82,5.7841]
[1747590814975,115.34738937,172.89,172.79,8.49707896]
[1747590815164,10.96948937,172.89,172.79,8.49707896]
[1747590815363,5.18738937,172.89,172.79,8.49707896]
[1747590815764,5.18738937,172.89,172.8,109.58]
[1747590816073,127.89077861,172.95,172.82,8.49707896]
[1747590816369,5.7813,172.92,172.82,8.49707896]
[1747590816570,127.89077861,172.95,172.82,8.49707896]
[1747590816966,5.7807,172.93,172.82,8.49707896]
[1747590817169,5.7807,172.93,172.88,5.7822]
[1747590819071,5.18738937,172.96,172.84,109.36]
[1747590819273,5.18738937,172.96,172.86,10.48397896]
[1747590819566,5.7799,172.96,172.91,5.7811]
[1747590819770,505.24738937,173.02,172.91,109.34]
[1747590819771,5.18738937,173.02,172.91,109.34]
[1747590820271,5.7784,173.0,172.95,5.7799]
[1747590820473,5.18738937,173.02,172.91,109.34]
[1747590821868,5.778,173.01,172.96,5.7795]
[1747590822071,5.18738937,173.02,172.93,8.49707896]
[1747590822268,5.18738937,173.02,172.92,218.6185]
[1747590822471,5.7787,172.99,172.94,5.7803]
[1747590822669,5.18738937,173.02,172.92,218.6185]
[1747590822968,10.96508937,173.02,172.93,8.49707896]
[1747590823363,10.96508937,173.02,172.94,1.9744]
[1747590823574,5.18738937,173.02,172.94,1.9744]
[1747590823976,5.7774,173.03,172.94,1.9744]
[1747590824165,5.7776,173.03,172.97,5.779]
[1747590824371,109.34,173.06,172.94,1.9744]
[1747590824672,5.7772,173.04,172.98,5.7787]
[1747590825275,5.7772,173.04,172.99,5.7786]
[1747590825876,109.34,173.06,172.95,2.0162]
[1747590826570,5.7776,173.03,172.98,5.7787]
[1747590827377,20.52715666,173.14,172.98,5.7787]
[1747590827378,5.18738937,173.15,173.02,13.54752379]
[1747590827877,5.7749,173.11,173.05,5.7766]
[1747590828377,5.7749,173.11,173.06,5.7763]
[1747590829078,5.18738937,173.15,173.07,106.04]
[1747590829375,5.18738937,173.15,173.06,13.54752379]
[1747590829571,5.18738937,173.15,173.13,5.7737]
[1747590829970,5.18738937,173.15,173.08,211.84]
[1747590830272,5.7721,173.19,173.13,5.7737]
[1747590830472,211.58,173.26,173.08,211.84]
[1747590830673,211.58,173.26,173.15,5.773]
[1747590831373,211.58,173.26,173.1,13.54752379]
[1747590832377,5.771,173.22,173.1,13.54752379]
[1747590832979,105.2,173.25,173.1,105.2]
[1747590833580,105.2,173.25,173.09,106.0]
[1747590833979,5.7725,173.18,173.09,106.0]
[1747590834168,105.2,173.25,173.09,106.0]
[1747590834779,5.7727,173.17,173.13,5.7739]
[1747590834977,5.7727,173.17,173.09,106.0]